lending/lending_fUSD_20251021
["ID","MTS","AMOUNT","RATE_DAILY","PERIOD"]
[391983857,1761055846051,-151.0,0.00023288,7]
[391983858,1761055846061,-151.0,0.00023288,7]
[391983859,1761055846070,-182.727398,0.00023288,7]
[391983860,1761055846079,-1133.321455,0.00023288,7]
[391983861,1761055846091,-1133.321455,0.00023288,7]
[391983862,1761055846100,-1133.321455,0.00023288,7]
[391983863,1761055846109,-1133.321455,0.00023288,7]
[391983864,1761055846119,-1133.321455,0.00023288,7]
[391983866,1761055846131,-1133.321455,0.00023288,7]
[391983868,1761055846141,-1133.321455,0.00023288,7]
[391983870,1761055846150,-1133.321455,0.00023288,7]
[391983872,1761055846160,-1133.321455,0.00023288,7]
[391983874,1761055846169,-1133.321455,0.00023288,7]
[391983876,1761055846178,-1133.321455,0.00023288,7]
[391983878,1761055846188,-1133.321455,0.00023288,7]
[391983880,1761055846197,-1133.321455,0.00023288,7]
[391983882,1761055846207,-1133.321455,0.00023288,7]
[391983884,1761055846216,-1133.321455,0.00023288,7]
[391983886,1761055846225,-1133.321455,0.00023288,7]
[391983888,1761055846235,-151.0,0.00023288,7]
[391983890,1761055846245,-151.0,0.00023288,7]
[391983892,1761055846255,-151.0,0.00023288,7]
[391983894,1761055846264,-151.0,0.00023288,7]
[391983895,1761055846274,-151.0,0.00023288,7]
[391983897,1761055846284,-151.0,0.00023288,7]
[391983899,1761055846294,-1133.321455,0.00023288,7]
[391983901,1761055846303,-1133.321455,0.00023288,7]
[391983903,1761055846311,-151.0,0.00023288,7]
[391983905,1761055846320,-151.0,0.00023288,7]
[391983908,1761055846339,-151.0,0.00023288,7]
[391983910,1761055846350,-1133.321455,0.00023288,7]
[391983912,1761055846361,-156.759514,0.00023288,7]
[391983915,1761055846375,-1133.321462,0.00023288,7]
[391983917,1761055846385,-151.0,0.00023288,7]
[391983919,1761055846394,-151.0,0.00023288,7]
[391983921,1761055846404,-151.0,0.00023288,7]
[391983923,1761055846414,-151.0,0.00023288,7]
[391983925,1761055846423,-151.0,0.00023288,7]
[391983927,1761055846432,-151.0,0.00023288,7]
[391983929,1761055846443,-151.0,0.00023288,7]
[391983931,1761055846452,-151.0,0.00023288,7]
[391983933,1761055846462,-151.0,0.00023288,7]
[391983935,1761055846472,-151.0,0.00023288,7]
[391983937,1761055846482,-160.562711,0.00023288,7]
[391983939,1761055846491,-151.0,0.00023288,7]
[391983941,1761055846500,-255.796323,0.00023288,7]
[391983943,1761055846510,-151.0,0.00023288,7]
[391983945,1761055846519,-151.0,0.00023288,7]
[391983947,1761055846528,-152.42683,0.00023288,7]
[391983949,1761055846538,-152.14666,0.00023288,7]
[391983951,1761055846548,-151.0,0.00023288,7]
[391983953,1761055846558,-151.0,0.00023288,7]
[391983955,1761055846567,-151.0,0.00023288,7]
[391983957,1761055846577,-151.0,0.00023288,7]
[391983959,1761055846589,-151.0,0.00023288,7]
[391983961,1761055846598,-191.010954,0.00023288,7]
[391983963,1761055846608,-151.0,0.00023288,7]
[391983965,1761055846617,-153.057602,0.00023288,7]
[391983987,1761055846626,-207.225089,0.00023288,7]
[391983989,1761055846827,-207.225089,0.00023288,7]
[391983991,1761055846839,-207.225089,0.00023288,7]
[391983993,1761055846849,-207.225089,0.00023288,7]
[391983995,1761055846858,-207.225089,0.00023288,7]
[391983997,1761055846869,-207.225089,0.00023288,7]
[391983999,1761055846878,-207.225089,0.00023288,7]
[391984001,1761055846888,-207.225089,0.00023288,7]
[391984003,1761055846897,-207.225089,0.00023288,7]
[391984005,1761055846906,-207.225089,0.00023288,7]
[391984007,1761055846915,-207.225089,0.00023288,7]
[391984009,1761055846924,-207.225089,0.00023288,7]
[391984011,1761055846933,-207.225089,0.00023288,7]
[391984013,1761055846942,-207.225089,0.00023288,7]
[391984015,1761055846951,-207.225089,0.00023288,7]
[391984017,1761055846960,-207.225089,0.00023288,7]
[391984019,1761055846969,-207.225089,0.00023288,7]
[391984021,1761055846978,-207.225089,0.00023288,7]
[391984023,1761055846987,-207.225089,0.00023288,7]
[391984025,1761055846996,-207.225081,0.00023288,7]
[391984027,1761055847005,-151.0,0.00023288,7]
[391984029,1761055847014,-151.0,0.00023288,7]
[391984031,1761055847023,-204.127932,0.00023288,7]
[391984033,1761055847032,-204.127932,0.00023288,7]
[391984035,1761055847041,-204.127932,0.00023288,7]
[391984037,1761055847052,-204.127932,0.00023288,7]
[391984039,1761055847061,-204.127932,0.00023288,7]
[391984041,1761055847070,-204.127932,0.00023288,7]
[391984043,1761055847079,-204.127932,0.00023288,7]
[391984045,1761055847090,-204.127932,0.00023288,7]
[391984047,1761055847099,-151.0,0.00023288,7]
[391984049,1761055847108,-204.127932,0.00023288,7]
[391984051,1761055847118,-151.0,0.00023288,7]
[391984053,1761055847128,-204.127932,0.00023288,7]
[391984055,1761055847137,-151.0,0.00023288,7]
[391984057,1761055847147,-151.0,0.00023288,7]
[391984059,1761055847156,-204.127932,0.00023288,7]
[391984061,1761055847166,-190.055921,0.00023288,7]
[391984063,1761055847175,-204.127932,0.00023288,7]
[391984065,1761055847184,-204.127932,0.00023288,7]
[391984067,1761055847193,-151.0,0.00023288,7]
[391984069,1761055847203,-151.0,0.00023288,7]
[391984071,1761055847212,-204.127932,0.00023288,7]
[391984073,1761055847220,-151.0,0.00023288,7]
[391984075,1761055847229,-204.127932,0.00023288,7]
[391984077,1761055847238,-151.0,0.00023288,7]
[391984079,1761055847247,-204.127932,0.00023288,7]
[391984081,1761055847257,-154.488056,0.00023288,7]
[391984083,1761055847267,-204.127932,0.00023288,7]
[391984085,1761055847276,-204.127932,0.00023288,7]
[391984087,1761055847285,-204.127932,0.00023288,7]
[391984089,1761055847294,-204.127938,0.00023288,7]
[391984091,1761055847303,-151.0,0.00023288,7]
[391984093,1761055847313,-151.0,0.00023288,7]
[391984095,1761055847322,-151.0,0.00023288,7]
[391984096,1761055847331,-151.0,0.00023288,7]
[391984098,1761055847342,-151.0,0.00023288,7]
[391984100,1761055847351,-151.0,0.00023288,7]
[391984102,1761055847360,-151.0,0.00023288,7]
[391984104,1761055847369,-151.0,0.00023288,7]
[391984106,1761055847378,-151.0,0.00023288,7]
[391984108,1761055847387,-234.447809,0.00023288,7]
[391984110,1761055847396,-152.120135,0.00023288,7]
[391984112,1761055847405,-151.0,0.00023288,7]
[391984114,1761055847414,-151.0,0.00023288,7]
[391984116,1761055847423,-151.0,0.00023288,7]
[391984118,1761055847432,-151.0,0.00023288,7]
[391984120,1761055847441,-151.0,0.00023288,7]
[391984122,1761055847449,-151.0,0.00023288,7]
[391984124,1761055847459,-151.0,0.00023288,7]
[391984126,1761055847468,-151.0,0.00023288,7]
[391984128,1761055847477,-151.0,0.00023288,7]
[391984130,1761055847486,-294.32589419,0.00023288,7]
[391984132,1761055847496,-151.0,0.00023288,7]
[391984134,1761055847505,-151.0,0.00023288,7]
[391984136,1761055847514,-151.0,0.00023288,7]
[391984138,1761055847523,-151.0,0.00023288,7]
[391984140,1761055847533,-151.0,0.00023288,7]
[391984142,1761055847542,-151.0,0.00023288,7]
[391984143,1761055847551,-152.469982,0.00023288,7]
[391984146,1761055847561,-151.0,0.00023288,7]
[391984147,1761055847570,-151.0,0.00023288,7]
[391984149,1761055847579,-151.0,0.00023288,7]
[391984151,1761055847591,-298.805927,0.00023288,7]
[391984153,1761055847600,-151.0,0.00023288,7]
[391984155,1761055847609,-151.0,0.00023288,7]
[391984157,1761055847619,-151.0,0.00023288,7]
[391984159,1761055847629,-151.0,0.00023288,7]
[391984161,1761055847638,-151.0,0.00023288,7]
[391984163,1761055847648,-151.0,0.00023288,7]
[391984165,1761055847657,-151.0,0.00023288,7]
[391984167,1761055847667,-151.0,0.00023288,7]
[391984169,1761055847676,-154.725983,0.00023288,7]
[391984171,1761055847686,-291.16742,0.00023288,7]
[391984173,1761055847695,-151.0,0.00023288,7]
[391984175,1761055847704,-151.0,0.00023288,7]
[391984177,1761055847713,-151.0,0.00023288,7]
[391984179,1761055847722,-151.0,0.00023288,7]
[391984181,1761055847731,-151.0,0.00023288,7]
[391984183,1761055847740,-155.817147,0.00023288,7]
[391984185,1761055847749,-753.447165,0.00023288,7]
[391984187,1761055847758,-151.0,0.00023288,7]
[391984189,1761055847767,-151.0,0.00023288,7]
[391984191,1761055847776,-151.0,0.00023288,7]
[391984192,1761055847785,-753.447165,0.00023288,7]
[391984193,1761055847794,-753.447165,0.00023288,7]
[391984194,1761055847803,-151.0,0.00023288,7]
[391984196,1761055847812,-753.447165,0.00023288,7]
[391984197,1761055847821,-151.0,0.00023288,7]
[391984198,1761055847830,-753.447165,0.00023288,7]
[391984199,1761055847840,-151.0,0.00023288,7]
[391984200,1761055847849,-151.0,0.00023288,7]
[391984201,1761055847859,-151.0,0.00023288,7]
[391984202,1761055847869,-753.447165,0.00023288,7]
[391984203,1761055847878,-753.447165,0.00023288,7]
[391984204,1761055847888,-206.007068,0.00023288,7]
[391984205,1761055847897,-182.322601,0.00023288,7]
[391984206,1761055847906,-753.447165,0.00023288,7]
[391984207,1761055847915,-753.447165,0.00023288,7]
[391984208,1761055847924,-753.447165,0.00023288,7]
[391984209,1761055847933,-153.091812,0.00023288,7]
[391984210,1761055847943,-753.447165,0.00023288,7]
[391984211,1761055847952,-753.447165,0.00023288,7]
[391984212,1761055847965,-753.447165,0.00023288,7]
[391984213,1761055847975,-151.0,0.00023288,7]
[391984214,1761055847984,-753.447165,0.00023288,7]
[391984215,1761055847994,-151.0,0.00023288,7]
[391984216,1761055848004,-753.447165,0.00023288,7]
[391984217,1761055848013,-151.0,0.00023288,7]
[391984218,1761055848023,-155.031419,0.00023288,7]
[391984219,1761055848033,-753.447165,0.00023288,7]
[391984220,1761055848042,-753.447165,0.00023288,7]
[391984221,1761055848051,-753.447165,0.00023288,7]
[391984222,1761055848061,-753.447165,0.00023288,7]
[391984223,1761055848070,-753.447174,0.00023288,7]
[391984224,1761055848079,-151.0,0.00023288,7]
[391984225,1761055848092,-300.570075,0.00023288,7]
[391984226,1761055848101,-151.0,0.00023288,7]
[391984227,1761055848111,-151.0,0.00023288,7]
[391984228,1761055848121,-151.0,0.00023288,7]
[391984229,1761055848134,-151.0,0.00023288,7]
[391984230,1761055848144,-151.0,0.00023288,7]
[391984231,1761055848153,-151.0,0.00023288,7]
[391984232,1761055848164,-209.823897,0.00023288,7]
[391984233,1761055848174,-151.0,0.00023288,7]
[391984234,1761055848184,-291.279283,0.00023288,7]
[391984235,1761055848195,-155.141669,0.00023288,7]
[391984236,1761055848205,-257.522864,0.00023288,7]
[391984237,1761055848216,-151.0,0.00023288,7]
[391984238,1761055848225,-151.0,0.00023288,7]
[391984239,1761055848235,-151.0,0.00023288,7]
[391984240,1761055848245,-151.0,0.00023288,7]
[391984241,1761055848255,-151.0,0.00023288,7]
[391984242,1761055848264,-151.0,0.00023288,7]
[391984243,1761055848274,-151.0,0.00023288,7]
[391984244,1761055848284,-151.0,0.00023288,7]
[391984245,1761055848294,-151.0,0.00023288,7]
[391984246,1761055848304,-151.0,0.00023288,7]
[391984247,1761055848313,-157.664249,0.00023288,7]
[391984248,1761055848323,-151.0,0.00023288,7]
[391984249,1761055848333,-151.0,0.00023288,7]
[391984250,1761055848346,-151.0,0.00023288,7]
[391984251,1761055848355,-151.0,0.00023288,7]
[391984252,1761055848364,-151.0,0.00023288,7]
[391984253,1761055848375,-151.0,0.00023288,7]
[391984254,1761055848384,-151.0,0.00023288,7]
[391984255,1761055848394,-151.0,0.00023288,7]
[391984256,1761055848404,-151.0,0.00023288,7]
[391984257,1761055848413,-151.0,0.00023288,7]
[391984258,1761055848423,-151.0,0.00023288,7]
[391984259,1761055848433,-151.0,0.00023288,7]
[391984260,1761055848443,-151.0,0.00023288,7]
[391984261,1761055848452,-151.0,0.00023288,7]
[391984262,1761055848462,-184.959441,0.00023288,7]
[391984263,1761055848473,-151.0,0.00023288,7]
[391984264,1761055848483,-151.0,0.00023288,7]
[391984265,1761055848494,-151.0,0.00023288,7]
[391984266,1761055848503,-151.0,0.00023288,7]
[391984267,1761055848512,-151.794255,0.00023288,7]
[391984268,1761055848522,-151.0,0.00023288,7]
[391984269,1761055848531,-151.0,0.00023288,7]
[391984270,1761055848541,-151.0,0.00023288,7]
[391984271,1761055848551,-151.0,0.00023288,7]
[391984272,1761055848560,-198.804804,0.00023288,7]
[391984273,1761055848570,-288.225333,0.00023288,7]
[391984274,1761055848579,-151.0,0.00023288,7]
[391984275,1761055848592,-151.0,0.00023288,7]
[391984276,1761055848601,-151.0,0.00023288,7]
[391984277,1761055848611,-198.804804,0.00023288,7]
[391984278,1761055848620,-151.0,0.00023288,7]
[391984279,1761055848629,-198.804804,0.00023288,7]
[391984280,1761055848640,-151.0,0.00023288,7]
[391984281,1761055848650,-151.0,0.00023288,7]
[391984282,1761055848659,-198.804804,0.00023288,7]
[391984283,1761055848669,-151.0,0.00023288,7]
[391984284,1761055848679,-151.0,0.00023288,7]
[391984285,1761055848689,-151.0,0.00023288,7]
[391984286,1761055848699,-285.85845,0.00023288,7]
[391984287,1761055848708,-223.308239,0.00023288,7]
[391984288,1761055848718,-198.804804,0.00023288,7]
[391984289,1761055848728,-260.245038,0.00023288,7]
[391984290,1761055848738,-151.0,0.00023288,7]
[391984291,1761055848747,-151.0,0.00023288,7]
[391984292,1761055848757,-198.804804,0.00023288,7]
[391984293,1761055848767,-282.68845,0.00023288,7]
[391984294,1761055848777,-198.804804,0.00023288,7]
[391984295,1761055848786,-151.0,0.00023288,7]
[391984296,1761055848796,-198.804804,0.00023288,7]
[391984297,1761055848805,-151.0,0.00023288,7]
[391984298,1761055848815,-198.804804,0.00023288,7]
[391984299,1761055848824,-198.804804,0.00023288,7]
[391984300,1761055848834,-198.804804,0.00023288,7]
[391984301,1761055848845,-198.804804,0.00023288,7]
[391984302,1761055848854,-198.804804,0.00023288,7]
[391984303,1761055848865,-198.804804,0.00023288,7]
[391984304,1761055848874,-198.804804,0.00023288,7]
[391984305,1761055848884,-198.804804,0.00023288,7]
[391984306,1761055848894,-198.804804,0.00023288,7]
[391984307,1761055848903,-198.804804,0.00023288,7]
[391984308,1761055848913,-198.804804,0.00023288,7]
[391984309,1761055848922,-198.80481,0.00023288,7]
[391984310,1761055848931,-151.0,0.00023288,7]
[391984311,1761055848942,-235.16643,0.00023288,7]
[391984312,1761055848951,-211.056353,0.00023288,7]
[391984313,1761055848960,-211.056353,0.00023288,7]
[391984314,1761055848970,-211.056353,0.00023288,7]
[391984315,1761055848979,-211.056353,0.00023288,7]
[391984316,1761055848989,-211.056353,0.00023288,7]
[391984317,1761055848998,-211.056353,0.00023288,7]
[391984318,1761055849008,-211.056353,0.00023288,7]
[391984319,1761055849018,-211.056353,0.00023288,7]
[391984320,1761055849029,-211.056353,0.00023288,7]
[391984321,1761055849042,-211.056353,0.00023288,7]
[391984322,1761055849053,-211.056353,0.00023288,7]
[391984323,1761055849065,-211.056353,0.00023288,7]
[391984324,1761055849077,-211.056353,0.00023288,7]
[391984325,1761055849093,-211.056353,0.00023288,7]
[391984326,1761055849104,-211.056353,0.00023288,7]
[391984327,1761055849116,-211.056353,0.00023288,7]
[391984328,1761055849130,-211.056353,0.00023288,7]
[391984329,1761055849142,-211.056353,0.00023288,7]
[391984330,1761055849154,-211.056353,0.00023288,7]
[391984331,1761055849166,-211.056362,0.00023288,7]
[391984332,1761055849178,-151.0,0.00023288,7]
[391984333,1761055849190,-151.0,0.00023288,7]
[391984334,1761055849202,-151.0,0.00023288,7]
[391984335,1761055849214,-154.91259,0.00023288,7]
[391984336,1761055849224,-151.0,0.00023288,7]
[391984337,1761055849235,-151.0,0.00023288,7]
[391984338,1761055849248,-151.0,0.00023288,7]
[391984339,1761055849259,-151.0,0.00023288,7]
[391984340,1761055849272,-207.31173,0.00023288,7]
[391984341,1761055849283,-151.0,0.00023288,7]
[391984342,1761055849294,-164.605312,0.00023288,7]
[391984343,1761055849306,-194.0146,0.00023288,7]
[391984344,1761055849318,-194.0146,0.00023288,7]
[391984345,1761055849329,-194.0146,0.00023288,7]
[391984346,1761055849346,-152.138358,0.00023288,7]
[391984347,1761055849358,-194.0146,0.00023288,7]
[391984348,1761055849369,-194.0146,0.00023288,7]
[391984349,1761055849380,-194.0146,0.00023288,7]
[391984350,1761055849391,-151.0,0.00023288,7]
[391984351,1761055849402,-151.0,0.00023288,7]
[391984352,1761055849412,-194.0146,0.00023288,7]
[391984353,1761055849423,-151.0,0.00023288,7]
[391984354,1761055849433,-151.0,0.00023288,7]
[391984355,1761055849443,-151.0,0.00023288,7]
[391984356,1761055849452,-194.0146,0.00023288,7]
[391984357,1761055849462,-151.0,0.00023288,7]
[391984358,1761055849472,-194.0146,0.00023288,7]
[391984359,1761055849481,-151.0,0.00023288,7]
[391984360,1761055849490,-151.0,0.00023288,7]
[391984361,1761055849501,-151.0,0.00023288,7]
[391984362,1761055849511,-194.0146,0.00023288,7]
[391984363,1761055849521,-194.0146,0.00023288,7]
[391984364,1761055849531,-151.0,0.00023288,7]
[391984365,1761055849540,-151.0,0.00023288,7]
[391984366,1761055849549,-194.0146,0.00023288,7]
[391984367,1761055849559,-151.0,0.00023288,7]
[391984368,1761055849570,-151.0,0.00023288,7]
[391984369,1761055849580,-194.0146,0.00023288,7]
[391984370,1761055849594,-151.0,0.00023288,7]
[391984371,1761055849605,-151.0,0.00023288,7]
[391984372,1761055849616,-151.0,0.00023288,7]
[391984373,1761055849627,-151.0,0.00023288,7]
[391984374,1761055849638,-151.0,0.00023288,7]
[391984375,1761055849650,-151.0,0.00023288,7]
[391984376,1761055849661,-151.0,0.00023288,7]
[391984377,1761055849671,-194.0146,0.00023288,7]
[391984378,1761055849682,-194.0146,0.00023288,7]
[391984379,1761055849862,-151.0,0.00023288,7]
[391984380,1761055849871,-151.0,0.00023288,7]
[391984381,1761055849880,-151.0,0.00023288,7]
[391984382,1761055849890,-241.94133,0.00023288,7]
[391984383,1761055849899,-151.0,0.00023288,7]
[391984384,1761055849908,-194.0146,0.00023288,7]
[391984385,1761055849918,-194.0146,0.00023288,7]
[391984386,1761055849927,-194.0146,0.00023288,7]
[391984387,1761055849936,-194.0146,0.00023288,7]
[391984388,1761055849945,-194.014605,0.00023288,7]
[391984389,1761055849956,-151.0,0.00023288,7]
[391984390,1761055849965,-151.0,0.00023288,7]
[391984391,1761055849975,-151.0,0.00023288,7]
[391984392,1761055849984,-151.0,0.00023288,7]
[391984393,1761055849993,-151.0,0.00023288,7]
[391984394,1761055850002,-151.0,0.00023288,7]
[391984395,1761055850011,-151.0,0.00023288,7]
[391984396,1761055850020,-151.0,0.00023288,7]
[391984397,1761055850030,-151.0,0.00023288,7]
[391984398,1761055850039,-163.38602165,0.00023288,7]
[391984400,1761055925103,300.0,0.00034285,30]
[391984401,1761055925741,300.0,0.00034285,30]
[391984402,1761055932050,1000.0,0.00034285,30]
[391984403,1761055993797,391.49,0.00025657,120]
[391984404,1761055994139,391.49,0.00028508,120]
[391984405,1761056030352,1095.37707662,0.00034285,30]
[391984408,1761056227369,598.27437593,0.00034285,30]
[391984409,1761056232100,277.92949405,0.00034285,30]
[391984415,1761056408221,242.57496282,0.00034364,60]
[391984438,1761056651803,1091.0,0.00034364,30]
[391984440,1761056654492,1091.0,0.00034364,30]
[391984441,1761056657060,1176.42111772,0.00034364,30]
[391984444,1761056751467,-436.732454,0.00015,2]
[391984446,1761056783433,6058.73330491,0.00034364,120]
[391984447,1761056809569,48000.0,0.00034364,120]
[391984511,1761057031850,-152.05980178,0.000149,2]
[391984512,1761057031859,-1914.0662097,0.000149,2]
[391984513,1761057031868,-176.44243638,0.000149,2]
[391984514,1761057031877,-157.53731326,0.000149,2]
[391984515,1761057031887,-500.0,0.00014973,2]
[391984516,1761057031896,-2653.88,0.0001499,2]
[391984517,1761057031905,-2653.88,0.0001499,2]
[391984518,1761057031915,-1033.0,0.00014998,2]
[391984519,1761057031926,-430.78698593,0.00014999,2]
[391984520,1761057031936,-500.0,0.00014999,2]
[391984521,1761057031947,-500.0,0.00014999,2]
[391984522,1761057031958,-550.0,0.00014999,2]
[391984523,1761057031968,-500.0,0.00014999,2]
[391984524,1761057031978,-500.0,0.00014999,2]
[391984525,1761057031987,-500.0,0.00014999,2]
[391984526,1761057031997,-500.0,0.00014999,2]
[391984527,1761057032006,-500.0,0.00014999,2]
[391984528,1761057032018,-1311.119546,0.00015,2]
[391984529,1761057032029,-165155.2159278,0.00015,2]
[391984546,1761057032408,-17032.82778514,0.00015,2]
[391984552,1761057032440,-20700.1205747,0.00015,2]
[391984557,1761057032452,-19438.45909207,0.00015,2]
[391984560,1761057032463,-1621.73849155,0.00015,2]
[391984563,1761057032481,-820.9423457,0.00015,2]
[391984566,1761057032495,-329.772748,0.00015,2]
[391984716,1761057037756,-35656.45446276,0.00015,2]
[391984717,1761057037992,-332.22111842,0.00015,2]
[391984750,1761057039900,-500.0,0.00014999,2]
[391984751,1761057039915,-2936.90964561,0.00015,2]
[391984752,1761057039938,-5425.83,0.00015,2]
[391984753,1761057039984,-1834.6,0.00015,2]
[391984754,1761057040142,-376.24428611,0.00015,2]
[391984755,1761057040161,-2208.75,0.00015,2]
[391984756,1761057040179,-764.0,0.00015,2]
[391984771,1761057043262,-210402.88083814,0.00015,2]
[391984782,1761057046183,-1010.10532525,0.00015,2]
[391984783,1761057046195,-615.8607968,0.00015,2]
[391984784,1761057046328,-20770.3048382,0.00015,2]
[391984785,1761057046341,-363.3645933,0.00015,2]
[391984786,1761057046403,-10395.0,0.00015,2]
[391984787,1761057046416,-164880.0,0.00015,2]
[391985305,1761057204894,239.05,7.813e-05,2]
[391985306,1761057205113,239.05,8.224e-05,2]
[391985307,1761057205318,239.05,8.635e-05,2]
[391985308,1761057205546,239.05,9.047e-05,2]
[391985309,1761057205831,239.05,9.458e-05,2]
[391985310,1761057206045,239.05,9.869e-05,2]
[391985311,1761057206275,239.05,0.0001028,2]
[391985312,1761057206467,239.05,0.00010691,2]
[391985313,1761057206883,239.05,0.00011103,2]
[391985314,1761057207164,239.05,0.00011514,2]
[391985315,1761057207381,239.05,0.00011925,2]
[391985316,1761057207607,239.05,0.00012336,2]
[391985317,1761057207841,239.05,0.00012747,2]
[391985318,1761057208020,239.05,0.00013159,2]
[391985319,1761057208234,239.05,0.0001357,2]
[391985320,1761057208478,239.05,0.00013981,2]
[391985327,1761057465580,309.2,0.00013699,2]
[391985328,1761057486572,-153.9344702,0.00014126,2]
[391985333,1761057523707,203.07,0.00013962,2]
[391985346,1761057842182,449.68,0.00013956,2]
[391985347,1761057842207,149.85725,0.00013956,2]
[391985351,1761057922091,150.0,0.00013488,2]
[391985353,1761057931420,4700.14275,0.00013872,2]
[391985355,1761057937731,-195.57852438,0.00013872,2]
[391985356,1761057940926,-266.15171073,0.00013872,2]
[391985366,1761058148329,-582.63512091,0.00013809,3]
[391985370,1761058151542,-83.36487909,0.00013809,3]
[391985371,1761058151565,-250.77316622,0.00013841,2]
[391985372,1761058153045,-458.84,0.00013841,2]
[391985373,1761058156927,-195.28861688,0.00013841,2]
[391985374,1761058159476,-250.0,0.00013841,2]
[391985375,1761058161714,-509.24173072,0.00013841,2]
[391985376,1761058165043,-160.80539673,0.00013841,2]
[391985377,1761058167187,-302.15392946,0.00013841,2]
[391985378,1761058172424,-186.25423959,0.00013841,2]
[391985380,1761058174558,-266.11416166,0.00013841,2]
[391985381,1761058176133,-181.42275923,0.00013841,2]
[391985382,1761058192112,-228.56951333,0.00013841,2]
[391985383,1761058196809,-179.43880913,0.00013841,2]
[391985384,1761058199017,-335.04487909,0.00013841,2]
[391985385,1761058204767,-246.61072807,0.00013841,2]
[391985404,1761058232182,-249.44206989,0.00013841,2]
[391985405,1761058232192,-80.81701489,0.00013872,2]
[391985406,1761058232203,-191.37864445,0.00013913,2]
[391985407,1761058232212,-250.0,0.00013936,7]
[391985410,1761058232483,-153.80639034,0.00013941,2]
[391985412,1761058232493,-150.0,0.00013941,2]
[391985414,1761058232505,-150.0,0.00013992,2]
[391985417,1761058232516,-1852.42,0.00014009,2]
[391985418,1761058232525,-195.0,0.00014013,2]
[391985419,1761058232534,-300.0,0.00014018,2]
[391985420,1761058232543,-195.0,0.0001405,2]
[391985421,1761058232553,-96.0655298,0.00014126,2]
[391985422,1761058232562,-1200.0,0.00014136,2]
[391985423,1761058232571,-1200.0,0.00014137,2]
[391985424,1761058232579,-150.0,0.00014237,2]
[391985427,1761058232592,-239.05,0.00014392,2]
[391985429,1761058232601,-300.0,0.00014526,2]
[391985431,1761058232609,-866.43826073,0.00014527,2]
[391985433,1761058232618,-965.75631436,0.00014693,2]
[391985482,1761058233029,-2781.25368564,0.00014693,2]
[391985484,1761058233039,-239.05,0.00014803,2]
[391985486,1761058233048,-150.0,0.0001489,2]
[391985488,1761058233058,-151.0,0.00014891,2]
[391985490,1761058233067,-151.0,0.00014891,2]
[391985492,1761058233078,-151.0,0.00014891,2]
[391985495,1761058233088,-151.0,0.00014891,2]
[391985497,1761058233097,-151.0,0.00014891,2]
[391985499,1761058233107,-151.0,0.00014891,2]
[391985501,1761058233117,-151.0,0.00014891,2]
[391985503,1761058233127,-151.0,0.00014891,2]
[391985505,1761058233136,-151.0,0.00014891,2]
[391985506,1761058233145,-151.0,0.00014891,2]
[391985509,1761058233155,-151.0,0.00014891,2]
[391985511,1761058233164,-151.0,0.00014891,2]
[391985513,1761058233174,-151.0,0.00014891,2]